[Event "Mongolian Championship Women 2022"]
[Site "Chingis Khentii"]
[Date "2022.05.15"]
[Round "2.1"]
[White "Mungunzul, Bat-Erdene"]
[Black "Bayarmaa, Bayarjargal"]
[Result "0-1"]
[ECO "E94"]
[WhiteElo "2091"]
[BlackElo "2124"]
[Annotator "TA"]
[PlyCount "124"]
[EventDate "2022.05.12"]
[EventType "tourn"]
[EventCountry "MGL"]
[SourceTitle "playchess.com"]
[Source "ChessBase"]
[SourceQuality "1"]
[TimeControl "40/5400+30:1800+30"]

{[%evp 15,124,29,59,34,49,36,21,0,3,4,42,28,37,39,32,33,49,35,15,0,0,0,0,0,52,52,60,62,60,20,35,29,36,2,60,58,56,62,69,40,102,95,89,87,93,94,137,0,0,0,0,0,-7,-134,-130,-127,-126,-135,-153,-139,-137,-143,-104,-264,-13,-185,-185,-208,-192,-212,-220,-212,-207,-213,-187,-188,-186,-904,-904,-750,-729,-899,-899,-854,-837,-29961,-29960,-1218,-5651,-2506,-2433,-29974,-29975,-29975,-29976,-29976,-29977,-29977,-29978,-29978,-29979,-29979,-29978,-29978,-29979,-29979,-29980,-29982,-29983,-29992,-29993]} 1. d4 {[%emt 0:00:02]} Nf6 {[%emt 0:00:07]} 2. c4 {[%emt 0:00:08]} g6 {[%emt 0:00:07]} 3. Nc3 {[%emt 0:00:11]} Bg7 {[%emt 0:00:06]} 4. e4 {[%emt 0:00:16]} d6 {[%emt 0:00:09]} 5. Nf3 {[%emt 0:00:18]} O-O {[%emt 0:00:08]} 6. Be2 {[%emt 0:00:14]} e5 {[%emt 0:00:35]} 7. O-O {[%emt 0:00:33]} Na6 {[%emt 0:05:09]} 8. Be3 {[%emt 0:12:18]} c6 $1 {[%emt 0:00:26][%mdl 4] is currently scoring better than 8...Ng4.} 9. Qd2 {[%emt 0:11:31] E94: King's Indian: Classical: 6 Be2 e5 7 0-0: Various Black 7th moves.} Qe8 {[%emt 0:07:40]} 10. dxe5 {[%emt 0:01:46]} dxe5 {[%emt 0:00:15]} 11. h3 {[%emt 0:00:46] Inhibits Ng4. The position is equal.} Qe7 {[%emt 0:04:51] [#] Prevents c5.} 12. Rfd1 $146 {[%emt 0:02:20]} ({Predecessor:} 12. a3 Nc5 13. Qc2 Nh5 14. b4 Ne6 15. Rfd1 f5 16. c5 {½-½ (37) Jones,G (2568)-Bekker Jensen,S (2425) Klaksvik 2010}) 12... Nh5 {[%emt 0:08:30]} 13. Qd6 {[%emt 0:12:33]} Qxd6 {[%emt 0:07:13]} 14. Rxd6 {[%emt 0:00:17]} Nf4 {[%emt 0:00:09]} 15. Bf1 {[%emt 0:01:11]} Ne6 {[%emt 0:09:36]} 16. Rad1 {[%emt 0:14:33]} Re8 {[%emt 0:03:41]} 17. a3 {[%emt 0:02:55]} Bf8 {[%emt 0:08:09]} 18. R6d2 {[%emt 0:01:20]} f6 {[%emt 0:01:06]} 19. b4 {[%emt 0:01:54]} c5 {[%emt 0:01:28]} (19... Nac7 $11) 20. Nd5 $14 {[%emt 0:03:45]} Kf7 {[%emt 0:03:50][%cal Rc5b4]} 21. Rb1 {[%emt 0:00:55]} b6 {[%emt 0:00:29]} 22. g4 {[%emt 0:07:20] Black should prevent g5.} g5 {[%emt 0:03:47]} 23. Bg2 {[%emt 0:01:47]} Bb7 {[%emt 0:07:05]} 24. Nh2 {[%emt 0:04:41]} Rac8 {[%emt 0:01:28]} ({Better is} 24... cxb4 $11 25. axb4 Nf4) 25. b5 {[%emt 0:01:01]} Nac7 {[%emt 0:00:26]} 26. a4 {[%emt 0:01:28][%cal Ba3a4,Ba4a5][%mdl 32]} Nf4 {[%emt 0:07:56]} 27. a5 {[%emt 0:02:44]} Nxg2 {[%emt 0:05:10]} (27... Ncxd5 $14 28. exd5 Rcd8) 28. Kxg2 $16 {[%emt 0:00:11]} Nxd5 {[%emt 0:05:34]} 29. exd5 {[%emt 0:00:23]} Rcd8 {[%emt 0:00:10]} 30. Nf1 {[%emt 0:03:41]} h5 {[%emt 0:02:24]} 31. Ng3 {[%emt 0:04:10]} ({White must play} 31. gxh5 $16 Bd6 32. Ng3) 31... hxg4 $11 {[%emt 0:00:14]} 32. hxg4 {[%emt 0:00:12]} Bc8 {[%emt 0:00:41][%cal Bb7c8,Bc8g4,Bg4d7][%mdl 32]} 33. f3 {[%emt 0:01:39] And now Ne4 would win.} e4 $1 {[%emt 0:00:42]} 34. f4 {[%emt 0:04:38]} (34. Re1 $11 {keeps the balance.}) 34... gxf4 $17 {[%emt 0:02:13]} (34... Bxg4 35. fxg5 Bd6 36. Rf1 Bf3+ 37. Kf2 $17) (34... bxa5 35. f5 $16) 35. Bxf4 {[%emt 0:00:03]} Bxg4 {[%emt 0:01:06]} 36. Nf1 {[%emt 0:00:49]} Bd6 {[%emt 0:00:42]} ({Don't do} 36... bxa5 37. Ra2 $14) 37. Bxd6 {[%emt 0:01:12]} Rxd6 {[%emt 0:00:11]} 38. Ne3 {[%emt 0:00:16]} Bd7 {[%emt 0:01:02] Black is more active.} 39. Kg3 $2 {[%emt 0:00:38] [#]} (39. axb6 $17 Rg8+ 40. Kf1 axb6 41. Rf2) 39... Rh8 $2 {[%emt 0:01:24]} (39... bxa5 40. Rh2 $14) ({Black should play} 39... f5 $1 $19 {[%cal Rf5f4] Strongly threatening ...f4+.} 40. Rf1 Rh6) 40. Rh2 $2 {[%emt 0:00:00]} (40. axb6 $11 axb6 41. Rg2) 40... Rxh2 $19 {[%emt 0:00:00]} 41. Kxh2 {[%emt 0:00:37][%mdl 4096] Endgame [#] KRB-KRN} f5 $1 {[%emt 0:06:02]} ({Stronger than} 41... bxa5 42. Ra1 a6 43. Rxa5 axb5 44. cxb5 $11) 42. axb6 {[%emt 0:03:11]} axb6 {[%emt 0:02:09]} 43. Kg3 {[%emt 0:00:21]} Rh6 {[%emt 0:00:34] Prevents Rh1. White must now prevent ...Rh7.} 44. Rf1 {[%emt 0:04:22]} Kg6 {[%emt 0:00:53] Hoping for ...Kg5.} 45. Kf4 {[%emt 0:09:54]} Kf6 {[%emt 0:04:01]} 46. Rf2 $2 {[%emt 0:01:30]} (46. d6) 46... Rh4+ {[%emt 0:01:19]} 47. Kg3 {[%emt 0:00:54]} Kg5 {[%emt 0:00:58]} 48. Ng2 {[%emt 0:01:51] Inhibits f4+.} Rg4+ {[%emt 0:00:41]} 49. Kh2 {[%emt 0:00:10]} f4 {[%emt 0:00:26][%cal Bf5f4,Bf4f3][%mdl 32]} 50. d6 {[%emt 0:03:25]} f3 {[%emt 0:02:04]} 51. Ne3 {[%emt 0:00:30]} Rh4+ {[%emt 0:00:25]} 52. Kg1 {[%emt 0:00:09]} Rh6 {[%emt 0:01:16] ( -> ...Kf4)} 53. Rd2 {[%emt 0:00:29]} Kf4 {[%emt 0:00:23] Black mates.} 54. Nd5+ {[%emt 0:02:43]} Kg3 {[%emt 0:00:17]} 55. Ne3 {[%emt 0:00:08]} f2+ {[%emt 0:03:17]} 56. Rxf2 {[%emt 0:00:32] [#]} Rh1+ $3 {[%emt 0:00:07][%mdl 512]} 57. Kxh1 {[%emt 0:00:16]} Kxf2 {[%emt 0:00:04] KB-KN} 58. Nd1+ {[%emt 0:01:01]} Ke2 {[%emt 0:00:17]} 59. Nc3+ {[%emt 0:06:36]} Kd3 {[%emt 0:00:45]} 60. Nd5 {[%emt 0:02:02]} e3 {[%emt 0:00:15][%cal Be4e3,Be3e2][%mdl 32]} 61. Kg2 {[%emt 0:01:44]} e2 {[%emt 0:00:14]} 62. Kf2 {[%emt 0:00:07]} Kd2 {[%emt 0:00:11] Weighted Error Value: White=0.62/Black=0.16 (very precise)} 0-1

[Event "Mongolian Championship Women 2022"]
[Site "Chingis Khentii"]
[Date "2022.05.15"]
[Round "2.2"]
[White "Altantuya, Boldbaatar"]
[Black "Khulan, Enkhsaikhan"]
[Result "1-0"]
[ECO "D94"]
[WhiteElo "2263"]
[BlackElo "2111"]
[Annotator "TA"]
[PlyCount "157"]
[EventDate "2022.05.12"]
[EventType "tourn"]
[EventCountry "MGL"]
[SourceTitle "playchess.com"]
[Source "ChessBase"]
[SourceQuality "1"]
[TimeControl "40/5400+30:1800+30"]

{[%evp 15,157,27,38,25,35,2,1,-13,0,-14,-25,-35,-2,-24,13,3,37,-12,-22,-30,-40,-32,-29,-43,-35,-42,-42,-43,-37,-50,-46,-51,-37,-34,-31,-36,-24,-76,-54,-54,-40,-145,-145,-145,-145,-145,-145,-145,-145,-145,-145,-145,-122,-234,-233,-225,-70,-63,-80,-304,-298,-302,-307,-302,-301,-283,-271,-378,-328,-323,-321,-419,-348,-348,-343,-428,-410,-445,-453,-576,-556,-527,-456,-586,-357,-357,-241,-222,0,-300,-288,-283,-251,-231,-202,-198,0,0,8,8,39,39,240,24,147,143,115,45,60,83,77,0,35,45,97,8,112,24,170,43,53,8,8,8,8,8,8,8,183,184,306,306,184,229,244,244,244,244,244,244,1123,511,379,140]} 1. d4 {[%emt 0:00:02]} d5 {[%emt 0:00:06]} 2. c4 {[%emt 0:00:06]} c6 {[%emt 0:00:13]} 3. Nc3 {[%emt 0:00:14]} Nf6 {[%emt 0:00:03]} 4. e3 {[%emt 0:00:23]} g6 {[%emt 0:00:51]} 5. Nf3 {[%emt 0:00:27]} Bg7 {[%emt 0:00:15]} 6. Be2 {[%emt 0:00:20]} O-O {[%emt 0:00:35]} 7. O-O {[%emt 0:00:09]} dxc4 {[%emt 0:01:15] 7...a6 is becoming the main line.} 8. Bxc4 {[%emt 0:00:12]} b5 {[%emt 0:00:10]} 9. Bd3 {[%emt 0:03:59] D94: Grünfeld: 4 Nf3 Bg7 5 e3.} Bb7 {[%emt 0:03:01]} 10. Bd2 {[%emt 0:01:28]} Nbd7 {[%emt 0:01:09]} 11. b4 {[%emt 0:02:12] [#] The position is equal.} Re8 $146 {[%emt 0:04:12]} ({Predecessor:} 11... a6 12. Rc1 Re8 13. Qb3 e5 14. Qb1 Rc8 15. Rfd1 exd4 16. exd4 Nb6 17. Bg5 Nbd5 {1-0 (60) Puroila,S-Vehkalahti,V (2054) Lahti 2002}) 12. a4 {[%emt 0:09:19]} e5 {[%emt 0:07:49]} 13. Bc2 {[%emt 0:01:14]} (13. axb5 e4 14. Be2 (14. bxc6 Bxc6 15. Ne5 Nxe5 $17) 14... exf3 15. Bxf3 Qc7 $17) 13... a6 {[%emt 0:01:42]} 14. a5 {[%emt 0:16:53]} h6 {[%emt 0:07:33]} 15. Bb3 {[%emt 0:01:02]} Nd5 {[%emt 0:04:31]} 16. Nxd5 {[%emt 0:11:13]} (16. Ne4 $14) 16... cxd5 $11 {[%emt 0:01:47]} 17. Rc1 {[%emt 0:03:15]} e4 {[%emt 0:03:36]} 18. Ne1 {[%emt 0:00:06]} Nf6 {[%emt 0:01:01][%cal Bd7f6,Bf6e8,Be8d6,Bd6c4][%mdl 32]} 19. Nc2 {[%emt 0:08:04]} Re7 {[%emt 0:03:11]} 20. Na1 {[%emt 0:02:57]} Ne8 {[%emt 0:02:54]} 21. Ba2 {[%emt 0:05:01]} Nd6 {[%emt 0:02:54]} 22. Nb3 {[%emt 0:00:02]} Nc4 {[%emt 0:02:07]} 23. Nc5 {[%emt 0:00:10]} Bc8 {[%emt 0:01:22]} 24. Bc3 {[%emt 0:03:25]} f5 {[%emt 0:03:38]} 25. Bxc4 {[%emt 0:04:20]} bxc4 {[%emt 0:00:46]} 26. Bd2 {[%emt 0:11:04]} (26. f3 $11) 26... Bd7 {[%emt 0:02:54]} 27. f3 {[%emt 0:01:30]} Bb5 {[%emt 0:06:07]} 28. Re1 {[%emt 0:05:14]} (28. fxe4 $15 fxe4 29. Be1) 28... exf3 $17 {[%emt 0:04:08]} 29. Qxf3 {[%emt 0:00:03]} Qd6 {[%emt 0:00:42]} 30. g3 {[%emt 0:01:59]} Rf8 {[%emt 0:03:55]} 31. Kh1 {[%emt 0:03:01]} Kh7 {[%emt 0:06:13]} 32. Rg1 {[%emt 0:00:48]} Be8 {[%emt 0:04:03]} 33. Rce1 {[%emt 0:01:09]} g5 {[%emt 0:01:42]} 34. b5 {[%emt 0:03:44]} (34. Qd1 $17) 34... Bxb5 $19 {[%emt 0:03:44]} 35. Bb4 {[%emt 0:00:03][%cal Oc5a6]} Ref7 $2 {[%emt 0:00:56]} (35... Qf6 $19 {Hoping for ...g4.} 36. Rg2 Rfe8) 36. Nd3 $1 $15 {[%emt 0:01:13]} Qe6 {[%emt 0:01:52]} 37. Nf2 {[%emt 0:01:27]} (37. Bxf8 $17 cxd3 38. Bb4) 37... Rb8 $19 {[%emt 0:01:44]} 38. Bc5 {[%emt 0:01:05]} Ba4 {[%emt 0:00:36]} 39. Bb6 {[%emt 0:00:24]} Bc2 {[%emt 0:03:03] This bishop pair is nice.} 40. Rgf1 {[%emt 0:00:00]} Re8 {[%emt 0:00:00][%cal Of5f4]} 41. Rc1 {[%emt 0:03:50]} Be4 {[%emt 0:05:50]} 42. Nxe4 {[%emt 0:00:10]} Qxe4 {[%emt 0:00:23]} 43. Rc3 {[%emt 0:04:22]} Kg6 {[%emt 0:02:00]} 44. Kg2 {[%emt 0:01:14]} Rfe7 {[%emt 0:05:07]} 45. Ra1 {[%emt 0:10:28]} h5 {[%emt 0:03:00]} 46. Qxe4 {[%emt 0:03:20]} Rxe4 {[%emt 0:00:18]} (46... fxe4 $2 47. Rf1 $19) 47. Kf3 {[%emt 0:00:04]} Bh6 {[%emt 0:01:00]} 48. Raa3 {[%emt 0:03:03]} Bf8 {[%emt 0:02:43]} 49. Ra4 {[%emt 0:00:24]} R4e6 {[%emt 0:04:05]} 50. Bc7 {[%emt 0:01:10]} Bh6 {[%emt 0:01:15]} 51. Be5 {[%emt 0:01:58]} Bf8 $2 {[%emt 0:02:55] Inhibits Rb4.} (51... Bg7 $19 52. Bxg7 Kxg7) 52. Ra2 $2 {[%emt 0:03:08][%mdl 8192]} (52. Bc7 $1 $11) 52... Bd6 {[%emt 0:08:22]} 53. Bxd6 {[%emt 0:00:32]} Rxd6 {[%emt 0:00:01][%mdl 4096] Endgame KRR-KRR} 54. Rb2 {[%emt 0:00:09]} Rf6 {[%emt 0:01:17]} 55. Rb7 {[%emt 0:02:16][%cal Bb2b7,Bb7d7,Bd7d5][%mdl 32]} Re4 $2 {[%emt 0:00:58]} (55... Rfe6 $19 {[%cal Of5f4] ...f4! is the strong threat.} 56. Ra3 R8e7) 56. Rd7 $1 $11 {[%emt 0:00:30]} f4 {[%emt 0:02:44]} 57. gxf4 {[%emt 0:00:07]} gxf4 {[%emt 0:00:42]} 58. Rxd5 {[%emt 0:00:05]} Re8 {[%emt 0:00:24]} (58... Rxe3+ $14 59. Rxe3 fxe3+ 60. Kxe3 Rf1) 59. exf4 $2 {[%emt 0:00:14]} ({White has to play} 59. e4 $1 $18) 59... Re1 {[%emt 0:01:14]} (59... Ref8 $11 {remains equal.}) 60. f5+ $16 {[%emt 0:01:13]} Kg5 {[%emt 0:00:36]} 61. Rxc4 {[%emt 0:00:20]} (61. Re5 $16 Rh1 62. Re2 (62. Rxc4 Rxh2 63. d5 Rh3+ 64. Ke2 Ra3 $11) (62. Kg2 Rd1 $14)) 61... Rf1+ $14 {[%emt 0:00:35]} 62. Ke4 {[%emt 0:00:34]} Re1+ {[%emt 0:01:38]} 63. Kf3 {[%emt 0:00:06]} Rf1+ {[%emt 0:00:16]} 64. Kg2 {[%emt 0:00:01]} Ra1 {[%emt 0:01:32] [#]} (64... Rd1 $14) 65. Rdc5 {[%emt 0:01:55]} ({White should play} 65. Rc3 $1 $16) 65... h4 {[%emt 0:02:19]} (65... Rxf5 $11 {keeps the balance.} 66. Rxf5+ Kxf5) 66. Rc1 {[%emt 0:00:47]} (66. Kf3 $16) 66... Ra2+ {[%emt 0:01:11]} ({Don't take} 66... Rxc1 67. Rxc1 Rd6 68. Rf1 $16) (66... Ra3 $11) 67. R1c2 {[%emt 0:00:22]} (67. Kf3 $18) 67... Ra4 {[%emt 0:00:40]} 68. d5 {[%emt 0:00:16]} Rd4 {[%emt 0:00:56]} 69. Rf2 {[%emt 0:01:19]} Rxf5 {[%emt 0:01:41]} 70. Rxf5+ {[%emt 0:00:04]} Kxf5 $11 {[%emt 0:00:03] KR-KR} 71. Kh3 {[%emt 0:00:31]} Ke5 $2 {[%emt 0:00:29]} (71... Ra4 $11) 72. Rc6 $18 {[%emt 0:00:12]} Kxd5 {[%emt 0:01:08]} (72... Ra4 $142) 73. Rxa6 {[%emt 0:00:06]} Kc5 {[%emt 0:00:36]} 74. Rg6 {[%emt 0:00:59] aiming for Rg4.} Kb5 {[%emt 0:00:27]} 75. a6 {[%emt 0:00:18]} Ra4 {[%emt 0:00:25] [#]} 76. Rh6 $1 {[%emt 0:01:57]} Ra2 {[%emt 0:00:27]} 77. Rxh4 {[%emt 0:00:47] Strongly threatening Rh6.} Kxa6 $2 {[%emt 0:00:01]} (77... Rxa6 78. Rh5+ Kc4) 78. Rb4 {[%emt 0:00:17]} Ka5 {[%emt 0:00:41]} 79. Rb1 $2 {[%emt 0:00:22] What a bad dream for Black.  Weighted Error Value: White=0.41/Black=0.39} (79. Rb3 $18) 1-0

[Event "Mongolian Championship Women 2022"]
[Site "Chingis Khentii"]
[Date "2022.05.15"]
[Round "2.3"]
[White "Enkhtuul, Altan-Ulzii"]
[Black "Munkhzul, Turmunkh"]
[Result "0-1"]
[ECO "D00"]
[WhiteElo "2228"]
[BlackElo "2294"]
[Annotator "TA"]
[PlyCount "92"]
[EventDate "2022.05.12"]
[EventType "tourn"]
[EventCountry "MGL"]
[SourceTitle "playchess.com"]
[Source "ChessBase"]
[SourceQuality "1"]
[TimeControl "40/5400+30:1800+30"]

{[%evp 9,92,6,4,-14,-2,-22,-22,-25,-3,-21,-20,-11,-7,-8,0,5,8,-23,-33,-35,-23,-79,-33,-43,-23,-37,-41,-39,-22,-27,-39,-79,-71,-79,-58,-78,-80,-129,-129,-129,-84,-108,-77,-76,-77,-247,-270,-257,-219,-773,-508,-482,-305,-1618,-1581,-29971,-29972,-6495,-918,-5601,-5581,-5481,-5381,-5210,-3520,-2875,-2837,-2864,-2243,-29973,-29976,-29981,-29981,-29982,-29983,-29983,-29984,-29984,-29983,-29984,-29985,-29987,-29988,-29988,-29988]} 1. d4 {[%emt 0:00:04]} d5 {[%emt 0:02:36]} 2. Nc3 {[%emt 0:01:08]} Nf6 {[%emt 0:01:18]} 3. Bf4 {[%emt 0:00:43]} Bf5 {[%emt 0:02:15]} 4. e3 {[%emt 0:00:16]} e6 {[%emt 0:01:22]} 5. Bd3 {[%emt 0:04:06]} Bg6 {[%emt 0:02:39]} 6. Nge2 {[%emt 0:02:15] D00: 1 d4 d5: Unusual lines.} Bd6 {[%emt 0:05:29]} 7. Nb5 {[%emt 0:01:04] [#]} Bxf4 $146 {[%emt 0:06:18]} ({Predecessor:} 7... Nc6 8. c3 Qe7 9. Nxd6+ cxd6 10. Bg5 O-O 11. Nf4 Rac8 12. O-O Bxd3 13. Nxd3 h6 14. Bxf6 Qxf6 {0-1 (32) Meszaros,N (1758)-Orgon,D (2074) Slovakia 2017}) 8. Nxf4 {[%emt 0:01:08] The position is equal.} Nbd7 {[%emt 0:03:48]} 9. h4 {[%emt 0:05:19]} Bxd3 {[%emt 0:07:29]} 10. cxd3 {[%emt 0:01:11]} a6 {[%emt 0:01:48]} 11. Nc3 {[%emt 0:00:23]} c5 {[%emt 0:00:48]} 12. dxc5 {[%emt 0:34:36]} Nxc5 {[%emt 0:00:23]} 13. b4 {[%emt 0:02:23]} (13. d4 $5 {[%cal Rd4c5]} Nce4 14. Nxe4 Nxe4 15. Qa4+ b5 16. Qa3 $11) 13... Ncd7 {[%emt 0:02:10][%cal Bc5d7,Bd7e5,Be5c4][%mdl 32]} 14. O-O {[%emt 0:07:18]} O-O {[%emt 0:01:28]} 15. Na4 {[%emt 0:06:46]} (15. d4 $11 {remains equal.}) 15... Qe7 {[%emt 0:04:25]} (15... d4 $17) 16. a3 $15 {[%emt 0:07:34]} b5 {[%emt 0:05:47]} 17. Nc3 {[%emt 0:00:14]} Rfc8 {[%emt 0:00:25]} 18. Rc1 {[%emt 0:00:33]} Ne5 {[%emt 0:00:36]} 19. g3 {[%emt 0:05:16]} h6 {[%emt 0:01:37]} 20. d4 {[%emt 0:04:37]} Nc4 {[%emt 0:02:12]} 21. Nb1 {[%emt 0:00:00]} g5 {[%emt 0:04:15]} 22. hxg5 {[%emt 0:02:31]} hxg5 {[%emt 0:00:07]} 23. Nh5 {[%emt 0:00:24]} (23. Nd3 $142) 23... Nxh5 $17 {[%emt 0:05:21]} 24. Qxh5 {[%emt 0:00:07]} Kg7 {[%emt 0:00:12] Prevents Qh6+. ...Qf6 is the strong threat.} 25. Kg2 {[%emt 0:00:15]} Rh8 {[%emt 0:04:50] Active counter play!} 26. Qf3 {[%emt 0:00:25]} Qf6 $36 {[%emt 0:09:12][%mdl 2048] Keeping White busy.} 27. Qg4 $2 {[%emt 0:05:41] Now White is beyond hope.} (27. Qxf6+ $17 Kxf6 28. Rfe1) 27... Qg6 $19 {[%emt 0:02:26] [#] Threatens to win with ...Rh6.} ({Not} 27... Qh6 28. Rh1 Qg6 29. Qf3 $17) 28. Rh1 {[%emt 0:00:10]} Rac8 {[%emt 0:01:13][%cal Oc4e3] ( -> ...Nxe3+!)} 29. Rce1 {[%emt 0:07:11]} (29. Qf3) 29... Rxh1 {[%emt 0:04:50]} 30. Kxh1 {[%emt 0:00:04]} Nd6 {[%emt 0:00:14]} 31. Qd1 {[%emt 0:01:30]} (31. Nd2) 31... Qe4+ {[%emt 0:00:34]} 32. f3 {[%emt 0:00:23]} Qh7+ {[%emt 0:00:18]} 33. Kg2 {[%emt 0:00:07]} Rc2+ {[%emt 0:00:05]} (33... g4 $142 34. Rh1 gxf3+ 35. Kg1 Qe4) 34. Nd2 {[%emt 0:00:55]} Nc4 {[%emt 0:00:05]} 35. Re2 {[%emt 0:00:12]} Rxd2 {[%emt 0:00:06]} 36. Qxd2 {[%emt 0:00:11]} Nxd2 {[%emt 0:00:05]} 37. Rxd2 {[%emt 0:00:09][%mdl 4096] Endgame KQ-KR} Qb1 {[%emt 0:00:06] [#] Hoping for ...Qe1.} 38. Kf2 {[%emt 0:00:42] Against Qe1+} Qb3 {[%emt 0:00:11]} 39. e4 {[%emt 0:00:21]} Qxa3 {[%emt 0:00:07] Black mates.} 40. exd5 {[%emt 0:00:00]} exd5 {[%emt 0:00:00]} 41. f4 {[%emt 0:01:24]} Qxb4 {[%emt 0:00:21]} 42. Rd3 {[%emt 0:00:05]} gxf4 {[%emt 0:00:10]} 43. gxf4 {[%emt 0:00:03]} Qb2+ {[%emt 0:00:04]} 44. Kf3 {[%emt 0:00:08]} a5 {[%emt 0:52:45][%cal Ba6a5,Ba5a4][%mdl 32]} 45. Kg4 {[%emt 0:00:08]} Qe2+ {[%emt 0:00:00]} 46. Rf3 {[%emt 0:00:09]} a4 {[%emt 0:01:00] Weighted Error Value: White=0.86/Black=0.30} 0-1

[Event "Mongolian Championship Women 2022"]
[Site "Chingis Khentii"]
[Date "2022.05.15"]
[Round "2.4"]
[White "Anu, Bayar"]
[Black "Nomindalai Tumurbaatar"]
[Result "0-1"]
[ECO "A57"]
[WhiteElo "2102"]
[BlackElo "2111"]
[Annotator "TA"]
[PlyCount "98"]
[EventDate "2022.05.12"]
[EventType "tourn"]
[EventCountry "MGL"]
[SourceTitle "playchess.com"]
[Source "ChessBase"]
[SourceQuality "1"]
[TimeControl "40/5400+30:1800+30"]

{[%evp 16,98,-58,-121,-129,-131,-119,-115,-97,-120,-17,-25,-29,-62,-20,-4,-16,-8,0,0,0,0,0,0,0,0,0,0,0,0,0,0,0,0,0,0,0,0,0,0,0,-65,0,0,0,0,0,0,0,0,0,0,0,0,0,0,0,0,0,-72,-64,-463,-497,-469,-462,-1022,-464,-29974,-29977,-29975,-29977,-29978,-29979,-29979,-29980,-29980,-29973,-29966,-29950,-29988,-29989,-29989,-29990,-29990,-29991]} 1. d4 {[%emt 0:00:01]} Nf6 {[%emt 0:00:11]} 2. c4 {[%emt 0:00:11]} c5 {[%emt 0:00:19]} 3. d5 {[%emt 0:00:46]} b5 {[%emt 0:00:12]} 4. cxb5 {[%emt 0:02:24]} a6 {[%emt 0:00:18][%cal Ba7a6,Ba6b5,Bb5b4][%mdl 32]} 5. Nc3 {[%emt 0:05:05]} axb5 {[%emt 0:00:31]} 6. e4 {[%emt 0:00:35]} b4 {[%emt 0:00:34]} 7. Nb5 {[%emt 0:00:21]} d6 {[%emt 0:00:25]} 8. Bf4 {[%emt 0:01:57]} g5 {[%emt 0:01:05]} 9. e5 {[%emt 0:10:24]} (9. Bxg5 $15 Nxe4 10. Bf4) 9... gxf4 $17 {[%emt 0:15:53] A57: Benko/Volga Gambit.} 10. exf6 {[%emt 0:00:38]} Nd7 {[%emt 0:09:16]} 11. fxe7 {[%emt 0:28:30]} Bxe7 {[%emt 0:00:17] [#] Black is better.} 12. Nf3 $146 {[%emt 0:05:53]} ({Predecessor:} 12. Nh3 O-O 13. Nxf4 Qa5 14. a4 Ne5 15. Be2 Bf5 16. b3 Rad8 17. O-O Bf6 18. Nh5 {½-½ (42) Spiegel,M (2205)-Buehring,S Germany 1992}) 12... Ba6 {[%emt 0:13:32]} ({Black should try} 12... O-O $17 {...Ba6 is the strong threat.} 13. Bd3 Bf6) 13. a4 {[%emt 0:08:14]} (13. Bd3 {feels hotter.} Nb6 14. a4 bxa3 15. Nxa3 c4 16. Be2) 13... bxa3 {[%emt 0:02:06]} (13... O-O {with more complications.} 14. Be2 Bf6 15. Rb1 Ne5) 14. Rxa3 {[%emt 0:02:23]} Bxb5 {[%emt 0:00:14]} (14... O-O {looks sharper.} 15. Na7 Rxa7 16. Bxa6 Bf6) 15. Bxb5 {[%emt 0:00:25]} Rxa3 {[%emt 0:00:10]} 16. Bxd7+ {[%emt 0:00:35]} Kxd7 {[%emt 0:00:21]} 17. bxa3 {[%emt 0:00:42]} Qa5+ {[%emt 0:00:58]} 18. Nd2 $1 {[%emt 0:08:53] [#] Hoping for 0-0.} Qb5 {[%emt 0:17:26] aiming for ...Re8.} 19. Qe2 {[%emt 0:07:09]} Rb8 {[%emt 0:00:41] Active counter play!} 20. Qxb5+ {[%emt 0:03:40]} ({Of course not} 20. Qh5 Re8 21. Qf5+ (21. Qxf7 $2 Kd8 $19) 21... Kd8 $17) 20... Rxb5 $11 {[%emt 0:00:03][%mdl 4096] Endgame KRB-KRN} 21. Ke2 {[%emt 0:00:09]} Rb2 {[%emt 0:02:50][%cal Of4f3]} 22. Rb1 {[%emt 0:02:39]} f3+ {[%emt 0:01:53]} 23. gxf3 {[%emt 0:00:42]} Ra2 {[%emt 0:00:07]} ({Resist} 23... Rxb1 24. Nxb1 Kc7 25. f4 $16) 24. Rb7+ {[%emt 0:01:25]} Kd8 {[%emt 0:00:11] And now ...Bg5 would win.} 25. Kd3 {[%emt 0:04:08]} Rxa3+ {[%emt 0:01:14]} 26. Rb3 {[%emt 0:03:13]} Rxb3+ {[%emt 0:06:58]} 27. Nxb3 {[%emt 0:00:01] KB-KN} Bh4 {[%emt 0:00:16]} 28. Nd2 {[%emt 0:00:26]} (28. Ke3 $1 $11) 28... Kc7 {[%emt 0:12:22]} ({Black should play} 28... Bxf2 $15 29. Ne4 Bg1) 29. Ke3 {[%emt 0:01:58]} Bf6 {[%emt 0:01:52]} 30. Nc4 {[%emt 0:01:11]} Bd4+ {[%emt 0:00:11]} 31. Ke2 {[%emt 0:00:23]} Be5 {[%emt 0:01:01]} 32. h3 {[%emt 0:00:20]} Bf4 {[%emt 0:01:09]} 33. Kd3 {[%emt 0:00:37]} f5 {[%emt 0:01:01]} 34. Kc3 {[%emt 0:00:53]} Be5+ {[%emt 0:00:54]} 35. Kd3 {[%emt 0:00:12]} Bf4 {[%emt 0:03:44]} 36. Kc3 {[%emt 0:00:02]} Kd7 {[%emt 0:00:30]} 37. Kd3 {[%emt 0:00:46]} (37. Kb3 $1 $11 {remains equal.}) 37... Ke7 $17 {[%emt 0:00:08]} 38. Kc3 $2 {[%emt 0:00:52][%mdl 8192] White does not recover from this.} (38. Nb6 $15) 38... Kf6 $19 {[%emt 0:00:26]} 39. Kd3 {[%emt 0:00:39] [#]} Kg5 {[%emt 0:00:23]} 40. Kc3 {[%emt 0:00:00]} (40. Ke2 $142 Kh4 41. Na5) 40... Kh4 {[%emt 0:00:00]} 41. Ne3 {[%emt 0:27:21]} (41. Kd3 $19 Kxh3 42. Ke2) 41... Bxe3 {[%emt 0:01:33] Black mates.} 42. fxe3 {[%emt 0:00:01] KP-KP} Kg3 {[%emt 0:00:10]} 43. e4 {[%emt 0:00:53]} fxe4 {[%emt 0:00:18]} 44. fxe4 {[%emt 0:00:08] K3P-K3P} Kf4 {[%emt 0:00:03]} 45. Kd3 {[%emt 0:00:29]} c4+ {[%emt 0:01:03]} 46. Kd4 {[%emt 0:00:52]} c3 $1 {[%emt 0:00:07]} 47. e5 {[%emt 0:00:18]} c2 {[%emt 0:00:06]} 48. exd6 {[%emt 0:01:33]} c1=Q {[%emt 0:00:07]} 49. d7 {[%emt 0:00:07]} Qc7 {[%emt 0:00:06] Weighted Error Value: White=0.57/Black=0.08 (flawless)} 0-1